Cogmind - Beta 13 @@@ ROGUE MODE // 2024.03.17 @ 07:49:08 Player: J1ang-5h1 Result: Destroyed by B-48 Gladiator with Mace Performance ------------- Evolutions (0) 0 Regions Visited (3) 600 Robots Destroyed (26) 130 Value Destroyed (484) 484 Prototype IDs (4) 80 Alien Tech Used (0) 0 Bonus (58) 58 TOTAL SCORE: 1352 Bonus ------- Follower Combat Kills 58 Cogmind --------- Core Integrity 0/250 Matter 273/300 Energy 265/265 System Corruption 3% Temperature Cool (0) Movement Treading (160) Location -7/Recycling Parts ------- > --- POWER (1) -------- Improved Ion Engine > --- PROPULSION (2) --- Light Treads Spiked Treads > --- UTILITY (2) ------ Large Storage Unit Improved Light Armor Plating > --- WEAPON (2) ------- Assault Rifle > --- INVENTORY (15) --- Improved Ion Engine Wheel Scrap Engine Cooling System Cooling System Large Matter Pod (150) Improved Sensor Array Improved Signal Interpreter Hardlight Generator System Restoration Module Plasma Cannon Plasma Cannon Heavy Missile Launcher Spear Peak State ------------ > --- POWER ------------ Improved Ion Engine > --- PROPULSION ------- Light Treads Spiked Treads > --- UTILITY ---------- Large Storage Unit System Restoration Module > --- WEAPON ----------- Assault Rifle Advanced Assault Cannon > --- INVENTORY -------- Improved Ion Engine Light Treads Wheel Scrap Engine Cooling System Cooling System Large Matter Pod Improved Sensor Array Improved Signal Interpreter Hardlight Generator Plasma Cannon Plasma Cannon Grenade Launcher Spear [Rating: 19] Favorites ----------- Power Improved Ion Engine Engine Improved Ion Engine Propulsion Light Treads Treads Light Treads Leg Aluminum Leg Utility Large Storage Unit Device Sensor Array Storage Large Storage Unit Processor Signal Interpreter Protection Light Armor Plating Weapon Assault Rifle Energy Gun Medium Laser Energy Cannon Subdweller Beam Cannon Ballistic Gun Assault Rifle Ballistic Cannon Advanced Assault Cannon Launcher Grenade Launcher Build | -11 -10 -10 -7 ------- Run | Yrd Mat Sub Rec Slots Evolved . | . . . . Power . | . . . . Propulsion . | . . . . Utility . | . . . . Weapon . | . . . . Parts Attached 45 | . 12 26 7 Power 3 | . 1 1 1 Engine 3 | . 1 1 1 Core . | . . . . Reactor . | . . . . Propulsion 4 | . 2 2 . Treads 4 | . 2 2 . Leg . | . . . . Wheel . | . . . . Hover . | . . . . Flight . | . . . . Utility 22 | . 4 14 4 Device 11 | . 1 9 1 Storage 2 | . 1 1 . Processor 1 | . . 1 . Hackware . | . . . . Protection 8 | . 2 3 3 Artifact . | . . . . Weapon 16 | . 5 9 2 Energy Gun 3 | . 1 2 . Energy Cannon 2 | . . 2 . Ballistic Gun 5 | . 3 1 1 Ballistic Cannon 1 | . . . 1 Launcher 5 | . 1 4 . Special Weapon . | . . . . Impact Weapon . | . . . . Slashing Weapon . | . . . . Piercing Weapon . | . . . . Special Melee Weapon . | . . . . Unidentified Prototypes 1 | . . 1 . Parts Lost 4 | . . 3 1 Power . | . . . . Propulsion 1 | . . 1 . Utility 1 | . . 1 . Weapon 2 | . . 1 1 Highest Loss Streak 2 | . . 2 1 To Critical Strikes . | . . . . Average Slot Usage (%) 99 | . 98 99 97 Engine 14 | . 14 14 14 Treads 21 | . 3 27 28 Leg 6 | . 24 . . Device 9 | . 6 12 3 Storage 13 | . 14 12 14 Protection 3 | . 7 1 10 Energy Gun 7 | . 14 6 . Energy Cannon 5 | . . 7 3 Ballistic Gun 11 | . 12 10 11 Ballistic Cannon 1 | . . . 10 Launcher 2 | . . 3 . Naked Turns . | . . . . Heaviest Build 40 | 14 34 40 40 Greatest Support 40 | 20 40 40 40 Greatest Overweight (x) 1 | . 1 1 . Average Overweight (x) . | . . . . Largest Inventory Capacity 15 | . 15 15 15 Average Capacity 13 | . 12 14 15 Most Carried 15 | . 15 15 15 Average Carried 13 | . 11 14 14 Final Capacity 15 | 8 15 15 15 Final Carried 15 | 6 15 14 15 Class Distribution -------------------- 100% | Mutant Dominant Class ---------------- Mutant | -10/Materials Mutant | -10/Subcaves Mutant | -7/Recycling Resources | -11 -10 -10 -7 ----------- Run | Yrd Mat Sub Rec Matter Collected 1168 | 200 230 205 533 Remotely . | . . . . Salvage Created 999 | . 274 231 494 Parts 54 | . 27 17 10 Haulers Intercepted 1 | . 1 . . Recyclers Shooed 7 | . 1 . 6 Parts Field Recycled . | . . . . Retrieved Matter . | . . . . Parts Self-Destructed 9 | . . 9 . Prevented . | . . . . Kills | -11 -10 -10 -7 ------- Run | Yrd Mat Sub Rec Combat Hostiles Destroyed 18 | . 9 9 . Guns 9 | . 6 3 . Cannons 2 | . . 2 . AOE 7 | . 3 4 . Classes Destroyed 5 | . 4 1 . Hauler 1 | . 1 . . Recycler 5 | . 1 . 4 Watcher 2 | . 2 . . Swarmer 10 | . 9 1 . Subdweller 8 | . . 8 . Best Kill Streak 4 | . 4 2 3 Combat Bots Only 3 | . 3 2 . Max Kills in Single Turn 4 | . 4 1 1 Gunslinging . | . . . . Exploded 3 | . 3 1 . Melee . | . . . . Uniques/NPCs Destroyed . | . . . . Combat | -11 -10 -10 -7 -------- Run | Yrd Mat Sub Rec Hostile Shots Fired 95 | . 29 50 16 Missed 22 | . 6 15 1 Damage Taken 1324 | . 182 822 320 Core 261 | . 7 143 111 Absorbed by Shields . | . . . . Core Remaining (%) 100 | 100 . . . Volleys Fired 112 | . 27 58 27 Largest 2 | . 2 2 1 Hottest 100 | . 90 100 80 Shots Fired 149 | . 53 69 27 Gun 82 | . 52 19 11 Cannon 44 | . . 28 16 Launcher 23 | . 1 22 . Special . | . . . . Kinetic 45 | . 21 13 11 Thermal 76 | . 26 34 16 Explosive 23 | . 1 22 . Electromagnetic 5 | . 5 . . Robot Hit Streak 26 | . 5 26 7 Robot Miss Streak 4 | . 4 1 2 Penetration Max . | . . . . Secondary Targets . | . . . . Shots Hit Robots 77 | . 28 31 18 Core Hits 34 | . 13 15 6 Critical Kills . | . . . . Critical Parts Destroyed . | . . . . Critical Strikes . | . . . . Melee Attacks . | . . . . Impact . | . . . . Slashing . | . . . . Piercing . | . . . . Sneak Attacks . | . . . . Combat Hostiles . | . . . . Follow-up Attacks . | . . . . Damage Inflicted 1886 | . 490 1018 378 Guns 617 | . 326 189 102 Cannons 437 | . . 161 276 Explosions 832 | . 164 668 . Melee . | . . . . Ramming . | . . . . Kinetic 316 | . 100 114 102 Thermal 691 | . 179 236 276 Explosive 832 | . 164 668 . Electromagnetic 47 | . 47 . . Impact . | . . . . Slashing . | . . . . Piercing . | . . . . Highest Corruption 3 | . . 1 3 Average Corruption 1 | . . 1 1 Corruption Purged 1 | . . . 1 Corruption Blocked . | . . . . Effects 4 | . . . 4 Message Errors 1 | . . . 1 Matter Fused 2 | . . . 2 Heat Flow Errors 1 | . . . 1 Overload Shots . | . . . . Overflow Damage 55 | . 25 . 30 Projectiles 30 | . . . 30 Explosions 25 | . 25 . . Melee . | . . . . Knockbacks . | . . . . Impact . | . . . . Kinetic . | . . . . Secondary . | . . . . Self-Inflicted Damage 44 | . . 44 . Shots 4 | . . 4 . Rammed . | . . . . Targets Rammed . | . . . . Kicked . | . . . . Crushed . | . . . . Highest Temperature 263 | . 150 263 258 Average Temperature 51 | . 35 42 77 Received Heat Transfer 721 | . . 721 . Siege Activations . | . . . . Robots Corrupted . | . . . . Combat Hostiles . | . . . . Parts Fried . | . . . . Impact Corruptions . | . . . . Robots Melted . | . . . . Combat Hostiles . | . . . . Parts Melted . | . . . . Heat Transferred 1332 | . 518 444 370 Parts Sabotaged . | . . . . Parts Stolen . | . . . . Parts Stripped . | . . . . Power Chain Reactions . | . . . . Alert | -11 -10 -10 -7 ------- Run | Yrd Mat Sub Rec Peak Influence 315 | . 196 . 315 Initial 279 | . . . 279 Average 102 | . 37 . 232 Maximum Alert Level 1 | . . . 1 Low Security (%) 81 | . 100 . 42 Level 1 18 | . . . 57 Level 2 . | . . . . Level 3 . | . . . . Level 4 . | . . . . Level 5 . | . . . . High Security . | . . . . Max Security . | . . . . Squads Dispatched 1 | . 1 . . Investigation 1 | . 1 . . Extermination . | . . . . Reinforcement . | . . . . Assault . | . . . . Garrison . | . . . . Intercept . | . . . . Searches Triggered . | . . . . Construction Impeded . | . . . . Haulers Reinforced . | . . . . Active Scanning Responses . | . . . . Cargo Convoy Interrupts . | . . . . Stealth | -11 -10 -10 -7 --------- Run | Yrd Mat Sub Rec Distress Signals 1 | . 1 . . Communications Jammed . | . . . . Distress Signals . | . . . . Times Spotted 39 | . 13 24 2 Peak Tracking Total 4 | . 4 2 2 Tactical Retreats 5 | . . 5 . Traps | -11 -10 -10 -7 ------- Run | Yrd Mat Sub Rec Traps Triggered 1 | . 1 . . Indirectly . | . . . . Trap Hack Attempts . | . . . . Triggered . | . . . . Disarmed . | . . . . Reprogrammed . | . . . . Reused . | . . . . Traps Extracted . | . . . . Installed . | . . . . Triggered . | . . . . Machines | -11 -10 -10 -7 ---------- Run | Yrd Mat Sub Rec Machines Disabled 2 | . . 2 . Max in Single Turn 2 | . . 2 . Machines Repaired . | . . . . Machines Dismantled . | . . . . Machines Sabotaged . | . . . . Overloaded Fab Kills . | . . . . Hacking | -11 -10 -10 -7 --------- Run | Yrd Mat Sub Rec Machines Accessed 14 | . 10 . 4 Terminals 10 | . 7 . 3 Fabricators . | . . . . Repair Stations 1 | . 1 . . Recycling Units 3 | . 2 . 1 Scanalyzers . | . . . . Garrison Access . | . . . . Total Hacks 38 | . 28 . 10 Successful 18 | . 15 . 3 Failed 19 | . 12 . 7 Catastrophic 4 | . 2 . 2 Database Lockouts 1 | . 1 . . Manual 22 | . 18 . 4 Terminals 25 | . 19 . 6 Fabricators . | . . . . Repair Stations 2 | . 2 . . Recycling Units 11 | . 7 . 4 Scanalyzers . | . . . . Garrison Access . | . . . . Terminal Hacks 7 | . 6 . 1 Part Schematic 1 | . . . 1 Robot Analysis 2 | . 2 . . Prototype ID Bank 2 | . 2 . . Terminal Index 1 | . 1 . . Locate Traps 1 | . 1 . . Fabricator Hacks . | . . . . Repair Station Hacks 1 | . 1 . . Scan Component 1 | . 1 . . Recycling Unit Hacks 1 | . 1 . . Retrieve Components 1 | . 1 . . Scanalyzer . | . . . . Garrison Access Hacks . | . . . . Unauthorized Hacks 9 | . 7 . 2 Terminals 3 | . 3 . . Botnet 3 | . 3 . . Fabricators . | . . . . Repair Stations . | . . . . Recycling Units 6 | . 4 . 2 Reject 3 | . 2 . 1 Mask 3 | . 2 . 1 Scanalyzers . | . . . . Garrison Access . | . . . . Data Cores Recovered . | . . . . Used . | . . . . Hacking Detections 13 | . 9 . 4 Full Trace Events 1 | . . . 1 Feedback Events . | . . . . Feedback Blocked . | . . . . Robot Schematics Acquired . | . . . . Robots Built . | . . . . Authchips . | . . . . Time . | . . . . Total Robot Build Rating . | . . . . Part Schematics Acquired 1 | . . . 1 Parts Built . | . . . . Authchips . | . . . . Time . | . . . . Total Part Build Rating . | . . . . Parts Repaired . | . . . . Time . | . . . . Parts Recycled . | . . . . Recycled Matter . | . . . . Retrieved Matter . | . . . . Retrieved Components 10 | . 10 . . Parts Scanalyzed . | . . . . Part Schematics Acquired . | . . . . Parts Damaged . | . . . . Bothacking | -11 -10 -10 -7 ------------ Run | Yrd Mat Sub Rec Used RIF Installer . | . . . . Robots Hacked . | . . . . Non-combat . | . . . . Combat . | . . . . Robot Hacks Applied . | . . . . Relay Couplers Released . | . . . . Fabnet Peak Effective % . | . . . . Robots Rewired 1 | . . . 1 Allies Hacked 1 | . . . 1 Hacks Repelled . | . . . . Allies | -11 -10 -10 -7 -------- Run | Yrd Mat Sub Rec Total Allies 3 | . . 2 1 Largest Group 2 | . . 1 2 Highest-Rated Group 25 | . . 19 25 Highest-Rated Ally 19 | . . 19 19 Total Orders . | . . . . Ally Attacks 18 | . . 10 8 Total Damage 243 | . . 127 116 Kills 4 | . . 3 1 Allies Corrupted 2 | . . . 2 Allies Melted . | . . . . Intel | -11 -10 -10 -7 ------- Run | Yrd Mat Sub Rec Robot Analysis Total 2 | . 2 . . Derelict Logs Recovered 1 | . . 1 . Drone Launches . | . . . . Drone Recoveries . | . . . . Exploration | -11 -10 -10 -7 ------------- Run | Yrd Mat Sub Rec Turns Passed 5363 | . 1408 3255 700 Spaces Moved 3014 | 1 843 1797 373 Core . | . . . . Treads 2280 | . 110 1797 373 Legs 734 | 1 733 . . Wheels . | . . . . Hover . | . . . . Flight . | . . . . Fastest Speed 120 | 120 120 160 160 Average Speed 158 | 120 152 160 160 Slowest Speed 260 | 120 190 260 160 Overloaded Moves . | . . . . Propulsion Burnouts . | . . . . Robots Hopped . | . . . . Cave-ins Triggered 1 | . . 1 . Exploration Rate (%) 56 | 2 89 80 53 Regions Visited 3 Branch Regions 2 Pre-discovered Areas 1 | . . 1 . Known Exits Taken . | . . . . Unknown Exits Taken 3 | 1 1 1 . Scrap Searched 1 | . . 1 . Spaces Dug 9 | . . 9 . Terrain Destroyed 98 | . 8 84 6 Melee . | . . . . Projectile 18 | . . 12 6 AOE 80 | . 8 72 . Terrain Rammed . | . . . . Walls Destroyed . | . . . . Machines Disabled . | . . . . Actions | -11 -10 -10 -7 --------- Run | Yrd Mat Sub Rec Total 3458 | . 918 2086 454 Wait 195 | . 7 175 13 Move 3010 | . 842 1795 373 Hop . | . . . . Pick Up 45 | . 18 18 9 Fast Attach 11 | . 3 5 3 Attach 8 | . 3 4 1 Detach 1 | . . . 1 Swap 26 | . 6 17 3 Drop 38 | . 12 13 13 Fire 112 | . 27 58 27 Melee . | . . . . Ram . | . . . . Kick . | . . . . Crush . | . . . . Escape Stasis 1 | . . 1 . Rewire 11 | . . . 11 Trap . | . . . . Miscellaneous . | . . . . Route ------- -11/Scrapyard -10/Materials (discovered 5 exits: [*Mat x2] / [*Min x2] / [*Sub]) -10/Subcaves (discovered 3 exits: *Mat x2 / *Rec) -7/Recycling History --------- Turn | Location | Event 1 | -11/Scrapyard | Discovered new exit (range 0) 1 | -11/Scrapyard | Entered Materials 300 | -10/Materials | Build established: Mutant 305 | -10/Materials | Discovered new exit (range 8) 372 | -10/Materials | Discovered new exit (range 15) 447 | -10/Materials | Discovered new exit (range 16) 530 | -10/Materials | Discovered new exit (range 15) 765 | -10/Materials | Central database locked down 1396 | -10/Materials | Discovered new exit (range 8) 1409 | -10/Materials | Entered Subcaves 1477 | -10/Subcaves | Learned Materials trap positions 1608 | -10/Subcaves | Discovered new exit (range 11) 1639 | -10/Subcaves | Discovered new exit (range 13) 1837 | -10/Subcaves | Identified exit to Materials 2261 | -10/Subcaves | Shifting Twisted Machinery released Sub. Beam Cannon 2815 | -10/Subcaves | Shifting Twisted Machinery released Spk. Treads 3958 | -10/Subcaves | Visited triangular shrine 3969 | -10/Subcaves | Found Prototype Device 3973 | -10/Subcaves | Identified V3-11A's Pendant 3978 | -10/Subcaves | Befriended Subdweller 4044 | -10/Subcaves | Learned location of Zion (-7) 4044 | -10/Subcaves | Met a Zionite searching for "candidates" 4116 | -10/Subcaves | A swath of the cavern ceiling suddenly collapsed 4248 | -10/Subcaves | A swath of the cavern ceiling suddenly collapsed 4594 | -10/Subcaves | Discovered new exit (range 14) 4596 | -10/Subcaves | Core integrity fell below 50% 4633 | -10/Subcaves | Crushed by falling debris 4653 | -10/Subcaves | Ambushed by Subdweller buried in earth 4660 | -10/Subcaves | Befriended Subdweller 4664 | -10/Subcaves | Entered Recycling 4664 | -7/Recycling | Accompanied by 1 ally 4794 | -7/Recycling | Found Scrap Engine 5355 | -7/Recycling | Core integrity fell below 20% 5364 | -7/Recycling | Destroyed by B-48 Gladiator with Mace Last Messages --------------- 05340_ L-41 Fighter destroyed. 05342_ Attempting to rewire T-07 Excavator. 05345_ B-48 Gladiator springs to life. 05345_ NA-9NI(R) suffers critical hit (Smash). 05345_ NA-9NI(R) system corrupted by crushing effect. 05345_ NA-9NI(R) knocked back. 05346_ P-60 Hacker springs to life. 05346_ Attempting to rewire T-07 Excavator. 05347_ R-06 Scavenger collects Carbon-fiber Leg. 05347_ P-60 Hacker hacks NA-9NI(R), rebooting. 05350_ B-48 Gladiator sneak attacks. 05350_ NA-9NI(R) system corrupted by crushing effect. 05350_ NA-9NI(R) knocked back. 05351_ Serf 4a system terminally corrupted. 05351_ NA-9NI(R) system terminally corrupted. 05361_ Critical hit (Smash). 05363_ Adv. Assault Cannon destroyed. 05364_ System corrupted: Matter fused (-8). Map ----- +----------------------------------------------------+ | ??????????? ???????????????????? | | ??????????# ???????????????????? | | ??????????# ???????????????????? | | ??????????# #??????????????????? | | ??????????# #????#############?? | | ??????????# #????# #?? | | ??????????# #????# #?? | | ??????????# #????# #?? | | ??????????# #????# #?? | | ########### ###### #? | | # #?? | | / #?? | | # #?? | | ##+##+######+### # #?? | | ? ???# # # #?? | | ?" """ ???#" + # #?? | | "" """ #??#"" # # #?? | | "" """ #??#"" # # #?? | | #??#"" # ########+####?? | | #??#"" # #??????# #????? | | #??#"T # ########%#????? | | ? #??#"" # !%#????? | | #####?##??#"" ##########+####?? | | ??????????#"" #??# %/% &&[ ]#?? | | ??????????#"" #??# p b !#?? | | ??????????#" #??#u d g@* #?? | | ??????????# #??# r a t%% #?? | | ???????????#####??# t r! #?? | | ??????????????????# l= ;#? | | ??????????????????#############? | | ???????????????????????????????? | | ???????????????????????????????? | | | | | | | | | | | | | | | | | | | | | | | | | | | | | | | | | | | | | +----------------------------------------------------+ Best States ------------- Heat Dissipation 47 Energy Generation 12 Energy Capacity 265 Matter Stores 300 Matter Capacity 300 Sight Range 21 Robot Scan Range 14 Terrain Scan Range 14 Terrain Scan Density 10 Armor Coverage 150 Evasion (%) 55 Recoil Reduction 2 Item Schematics ----------------- Adv. Shield Generator | -7/Recycling | Hacked Robot Schematics ------------------ None Fabricated ------------ Nothing Alien Tech Used ----------------- None Achievements -------------- None Challenges ------------ None Game ------ Seed RocketRecoilMonowheel Manual? 0 Play Time 00:45:03 Cumulative 190.5 hours Start 2024.03.17 @ 06:57:11 End 2024.03.17 @ 07:49:08 Sessions 1 Manual Loads 0 Difficulty Rogue Special Mode None Game No. 146 Rogue 136 Adventurer 0 Explorer 10 Win Type - Total 3 Types 3/0/0/0/0/0/0/0/0 Lore% 59 Gallery% 69 Achievement% 51 Wizard Run 0 Options --------- Layout 1 ASCII 0 Keyboard 0 Movement Arrows Keybinds 1 Fullscreen 1 Font 24/Smallcaps Map View 50x35 Zoom Use 0% Tactical HUD 1 Map Filters NONE Filters NONE Steam 1 RUN: 66408a2f-d3e6-4f05-9a30-974c20ed3b77